fUST/lending_fUST_20240702
["ID","MTS","AMOUNT","RATE_DAILY","PERIOD"]
[330859363,1719871847393,-500.0,0.00015884,2]
[330859364,1719871847403,-500.0,0.00015884,2]
[330859365,1719871847412,-500.0,0.00015884,2]
[330859366,1719871847422,-500.0,0.00015884,2]
[330859367,1719871847431,-500.0,0.00015884,2]
[330859368,1719871847441,-350.18,0.00015884,2]
[330859369,1719871847450,-500.0,0.00015884,2]
[330859370,1719871847459,-500.0,0.00015884,2]
[330859371,1719871847468,-500.0,0.00015884,2]
[330859372,1719871847478,-500.0,0.00015884,2]
[330859373,1719871847487,-500.0,0.00015884,2]
[330859374,1719871847496,-500.0,0.00015884,2]
[330859375,1719871847505,-503.37965649,0.00015884,2]
[330859376,1719871847514,-500.0,0.00015884,2]
[330859377,1719871847523,-1194.05,0.00015884,2]
[330859378,1719871847532,-501.98828211,0.00015884,2]
[330859379,1719871847542,-500.0,0.00015884,2]
[330859380,1719871847551,-476.93679426,0.00015884,2]
[330859381,1719871847560,-500.0,0.00015884,2]
[330859382,1719871847569,-500.0,0.00015884,2]
[330859383,1719871847579,-500.0,0.00015884,2]
[330859384,1719871847589,-500.0,0.00015884,2]
[330859385,1719871847598,-500.0,0.00015884,2]
[330859386,1719871847607,-646.49073318,0.00015884,2]
[330859387,1719871847617,-500.0,0.00015884,2]
[330859388,1719871847626,-500.0,0.00015884,2]
[330859389,1719871847635,-545.57432961,0.00015884,2]
[330859390,1719871847644,-500.0,0.00015884,2]
[330859391,1719871847653,-500.0,0.00015884,2]
[330859392,1719871847663,-1660.1,0.00015884,2]
[330859393,1719871847673,-500.0,0.00015884,2]
[330859394,1719871847682,-500.0,0.00015884,2]
[330859395,1719871847692,-500.0,0.00015884,2]
[330859396,1719871847702,-500.0,0.00015884,2]
[330859397,1719871847712,-500.0,0.00015884,2]
[330859398,1719871847722,-500.0,0.00015884,2]
[330859399,1719871847731,-500.0,0.00015884,2]
[330859400,1719871847740,-500.0,0.00015884,2]
[330859401,1719871847749,-500.0,0.00015884,2]
[330859402,1719871847759,-500.0,0.00015884,2]
[330859403,1719871847768,-641.77547426,0.00015884,2]
[330859404,1719871847784,-235.58452574,0.00015884,2]
[330859405,1719871847794,-500.0,0.00015884,2]
[330859406,1719871847803,-500.0,0.00015884,2]
[330859407,1719871847812,-722.64,0.00015884,2]
[330859408,1719871847822,-500.0,0.00015884,2]
[330859409,1719871847831,-500.0,0.00015884,2]
[330859410,1719871847840,-500.0,0.00015884,2]
[330859411,1719871847851,-500.0,0.00015884,2]
[330859412,1719871847861,-500.0,0.00015884,2]
[330859413,1719871847871,-500.0,0.00015884,2]
[330859414,1719871847880,-500.0,0.00015884,2]
[330859415,1719871847890,-500.0,0.00015884,2]
[330859416,1719871847900,-500.0,0.00015884,2]
[330859417,1719871847909,-500.0,0.00015884,2]
[330859418,1719871847919,-500.0,0.00015884,2]
[330859419,1719871847929,-3422.58,0.00015884,2]
[330859420,1719871847939,-737.67,0.00015884,2]
[330859421,1719871847948,-500.0,0.00015884,2]
[330859422,1719871847958,-500.0,0.00015884,2]
[330859423,1719871847967,-500.0,0.00015884,2]
[330859424,1719871847976,-500.0,0.00015884,2]
[330859425,1719871847985,-500.0,0.00015884,2]
[330859426,1719871847995,-500.0,0.00015884,2]
[330859427,1719871848005,-500.0,0.00015884,2]
[330859428,1719871848015,-465.42221473,0.00015884,2]
[330859429,1719871848024,-500.0,0.00015884,2]
[330859430,1719871848033,-500.0,0.00015884,2]
[330859431,1719871848043,-640.90668797,0.00015884,2]
[330859432,1719871848052,-500.0,0.00015884,2]
[330859433,1719871848062,-3495.41,0.00015884,2]
[330859434,1719871848073,-500.0,0.00015884,2]
[330859435,1719871848082,-500.0,0.00015884,2]
[330859436,1719871848091,-579.32,0.00015884,2]
[330859437,1719871848101,-500.0,0.00015884,2]
[330859438,1719871848110,-500.0,0.00015884,2]
[330859439,1719871848119,-832.97,0.00015884,2]
[330859440,1719871848129,-500.7410435,0.00015884,2]
[330859441,1719871848139,-846.29,0.00015884,2]
[330859442,1719871848148,-500.0,0.00015884,2]
[330859443,1719871848159,-334.27053557,0.00015884,2]
[330859444,1719871848168,-500.0,0.00015884,2]
[330859445,1719871848178,-500.0,0.00015884,2]
[330859446,1719871848188,-500.72786213,0.00015884,2]
[330859447,1719871848200,-500.0,0.00015884,2]
[330859448,1719871848211,-500.0,0.00015884,2]
[330859449,1719871848220,-500.0,0.00015884,2]
[330859450,1719871848230,-500.0,0.00015884,2]
[330859451,1719871848240,-500.0,0.00015884,2]
[330859452,1719871848249,-502.30305553,0.00015884,2]
[330859453,1719871848259,-500.0,0.00015884,2]
[330859454,1719871848268,-500.0,0.00015884,2]
[330859455,1719871848278,-504.01171455,0.00015884,2]
[330859456,1719871848288,-500.0,0.00015884,2]
[330859457,1719871848297,-441.47126655,0.00015884,2]
[330859458,1719871848307,-500.0,0.00015884,2]
[330859459,1719871848316,-500.0,0.00015884,2]
[330859460,1719871848325,-500.0,0.00015884,2]
[330859461,1719871848335,-500.0,0.00015884,2]
[330859462,1719871848345,-500.0,0.00015884,2]
[330859463,1719871848354,-500.0,0.00015884,2]
[330859464,1719871848364,-500.0,0.00015884,2]
[330859465,1719871848375,-500.0,0.00015884,2]
[330859466,1719871848386,-500.0,0.00015884,2]
[330859467,1719871848397,-500.85591091,0.00015884,2]
[330859468,1719871848409,-368.21404319,0.00015884,2]
[330859469,1719871848423,-131.78595681,0.00015884,2]
[330859470,1719871848434,-500.0,0.00015884,2]
[330859471,1719871848444,-500.0,0.00015884,2]
[330859472,1719871848453,-500.0,0.00015884,2]
[330859473,1719871848462,-500.0,0.00015884,2]
[330859474,1719871848472,-501.81901475,0.00015884,2]
[330859475,1719871848481,-500.0,0.00015884,2]
[330859476,1719871848502,-510.60943577,0.00015884,2]
[330859477,1719871848511,-500.0,0.00015884,2]
[330859478,1719871848520,-500.0,0.00015884,2]
[330859479,1719871848699,-153.80412355,0.00015884,2]
[330859480,1719871848709,-500.0,0.00015884,2]
[330859481,1719871848719,-574.85,0.00015884,2]
[330859482,1719871848729,-500.0,0.00015884,2]
[330859483,1719871848739,-500.9453637,0.00015884,2]
[330859484,1719871848749,-500.0,0.00015884,2]
[330859485,1719871848758,-500.0,0.00015884,2]
[330859486,1719871848767,-500.0,0.00015884,2]
[330859487,1719871848777,-306.30698272,0.00015884,2]
[330859488,1719871848786,-500.0,0.00015884,2]
[330859489,1719871848796,-500.0,0.00015884,2]
[330859490,1719871848806,-500.0,0.00015884,2]
[330859491,1719871848816,-500.0,0.00015884,2]
[330859492,1719871848825,-793.57,0.00015884,2]
[330859493,1719871848835,-502.82679596,0.00015884,2]
[330859494,1719871848845,-2861.08,0.00015884,2]
[330859495,1719871848854,-642.89628404,0.00015884,2]
[330859496,1719871848863,-2861.08,0.00015884,2]
[330859497,1719871848873,-500.0,0.00015884,2]
[330859498,1719871848882,-500.0,0.00015884,2]
[330859499,1719871848896,-613.39,0.00015884,2]
[330859500,1719871848906,-1122.93,0.00015884,2]
[330859501,1719871848917,-500.0,0.00015884,2]
[330859502,1719871848926,-500.0,0.00015884,2]
[330859503,1719871848935,-500.0,0.00015884,2]
[330859504,1719871848945,-309.86524763,0.00015884,2]
[330859505,1719871848959,-190.13475237,0.00015884,2]
[330859506,1719871848969,-5508.69,0.00015884,2]
[330859507,1719871848978,-500.0,0.00015884,2]
[330859508,1719871848987,-500.0,0.00015884,2]
[330859509,1719871848997,-500.0,0.00015884,2]
[330859510,1719871849006,-500.0,0.00015884,2]
[330859511,1719871849016,-500.0,0.00015884,2]
[330859512,1719871849025,-870.47,0.00015884,2]
[330859513,1719871849035,-500.0,0.00015884,2]
[330859514,1719871849044,-500.0,0.00015884,2]
[330859515,1719871849054,-500.0,0.00015884,2]
[330859516,1719871849063,-501.78897202,0.00015884,2]
[330859517,1719871849073,-507.14644414,0.00015884,2]
[330859518,1719871849083,-500.0,0.00015884,2]
[330859519,1719871849092,-500.0,0.00015884,2]
[330859520,1719871849102,-500.0,0.00015884,2]
[330859521,1719871849111,-500.0,0.00015884,2]
[330859522,1719871849121,-500.0,0.00015884,2]
[330859523,1719871849130,-500.0,0.00015884,2]
[330859524,1719871849141,-500.0,0.00015884,2]
[330859525,1719871849151,-500.0,0.00015884,2]
[330859526,1719871849160,-500.0,0.00015884,2]
[330859527,1719871849169,-500.0,0.00015884,2]
[330859528,1719871849179,-613.91,0.00015884,2]
[330859529,1719871849188,-500.0,0.00015884,2]
[330859530,1719871849200,-500.0,0.00015884,2]
[330859531,1719871849210,-349.70429711,0.00015884,2]
[330859532,1719871849219,-501.59162078,0.00015884,2]
[330859533,1719871849228,-504.55834231,0.00015884,2]
[330859534,1719871849238,-502.2341269,0.00015884,2]
[330859535,1719871849248,-500.0,0.00015884,2]
[330859536,1719871849257,-500.0,0.00015884,2]
[330859537,1719871849267,-500.0,0.00015884,2]
[330859538,1719871849279,-516.28,0.00015884,2]
[330859539,1719871849288,-500.0,0.00015884,2]
[330859540,1719871849300,-500.0,0.00015884,2]
[330859541,1719871849310,-499.49378223,0.00015884,2]
[330859542,1719871849320,-572.56279376,0.00015884,2]
[330859543,1719871849329,-500.0,0.00015884,2]
[330859544,1719871849338,-12700.3897205,0.00015885,2]
[330859545,1719871849348,-546.16,0.00015885,2]
[330859546,1719871849358,-500.0,0.00015885,2]
[330859547,1719871849367,-500.0,0.00015885,2]
[330859548,1719871849376,-507.65970843,0.00015885,2]
[330859549,1719871849385,-500.0,0.00015885,2]
[330859550,1719871849397,-500.0,0.00015885,2]
[330859551,1719871849407,-855.9,0.00015885,2]
[330859552,1719871849417,-500.0,0.00015885,2]
[330859553,1719871849427,-500.0,0.00015885,2]
[330859554,1719871849436,-500.0,0.00015885,2]
[330859555,1719871849446,-500.0,0.00015885,2]
[330859556,1719871849456,-500.0,0.00015885,2]
[330859557,1719871849465,-500.0,0.00015885,2]
[330859558,1719871849475,-500.0,0.00015885,2]
[330859559,1719871849484,-500.0,0.00015885,2]
[330859560,1719871849494,-500.0,0.00015885,2]
[330859561,1719871849504,-500.0,0.00015885,2]
[330859562,1719871849513,-500.0,0.00015885,2]
[330859563,1719871849522,-504.88581085,0.00015885,2]
[330859564,1719871849531,-500.0,0.00015885,2]
[330859565,1719871849540,-652.94,0.00015885,2]
[330859566,1719871849549,-500.0,0.00015885,2]
[330859567,1719871849558,-500.0,0.00015885,2]
[330859568,1719871849567,-500.0,0.00015885,2]
[330859569,1719871849576,-500.0,0.00015885,2]
[330859570,1719871849585,-747.26,0.00015885,2]
[330859571,1719871849594,-500.0,0.00015885,2]
[330859572,1719871849603,-500.0,0.00015885,2]
[330859573,1719871849612,-500.0,0.00015885,2]
[330859574,1719871849621,-514.18272042,0.00015885,2]
[330859575,1719871849630,-500.0,0.00015885,2]
[330859576,1719871849640,-500.0,0.00015885,2]
[330859577,1719871849650,-500.0,0.00015885,2]
[330859578,1719871849659,-500.0,0.00015885,2]
[330859579,1719871849669,-458.21305562,0.00015885,2]
[330859580,1719871849678,-500.0,0.00015885,2]
[330859581,1719871849688,-500.0,0.00015885,2]
[330859582,1719871849697,-312.28935339,0.00015885,2]
[330859583,1719871849706,-500.0,0.00015885,2]
[330859584,1719871849716,-500.0,0.00015885,2]
[330859585,1719871849725,-500.0,0.00015885,2]
[330859586,1719871849735,-514.13134728,0.00015885,2]
[330859587,1719871849743,-723.23,0.00015885,2]
[330859588,1719871849752,-528.71,0.00015885,2]
[330859589,1719871849761,-500.0,0.00015885,2]
[330859590,1719871849771,-896.49,0.00015885,2]
[330859591,1719871849780,-500.0,0.00015885,2]
[330859592,1719871849790,-500.0,0.00015885,2]
[330859593,1719871849799,-547.19,0.00015885,2]
[330859594,1719871849808,-500.0,0.00015885,2]
[330859595,1719871849817,-500.0,0.00015885,2]
[330859596,1719871849827,-500.0,0.00015885,2]
[330859597,1719871849836,-500.0,0.00015885,2]
[330859598,1719871849845,-502.21654518,0.00015885,2]
[330859599,1719871849854,-553.4,0.00015885,2]
[330859600,1719871849863,-502.2542566,0.00015885,2]
[330859601,1719871849873,-500.0,0.00015885,2]
[330859602,1719871849882,-624.01,0.00015885,2]
[330859603,1719871849893,-500.0,0.00015885,2]
[330859604,1719871849903,-500.0,0.00015885,2]
[330859605,1719871849912,-176.49,0.00015885,2]
[330859606,1719871849922,-379.27147645,0.00015885,2]
[330859607,1719871849931,-5179.78,0.00015885,2]
[330859608,1719871849941,-500.0,0.00015885,2]
[330859609,1719871849951,-500.0,0.00015885,2]
[330859610,1719871849960,-500.0,0.00015885,2]
[330859611,1719871849969,-500.0,0.00015885,2]
[330859612,1719871849979,-502.12166332,0.00015885,2]
[330859613,1719871849988,-2861.08,0.00015885,2]
[330859614,1719871849998,-2861.08,0.00015885,2]
[330859615,1719871850008,-1072.79,0.00015885,2]
[330859616,1719871850018,-2861.08,0.00015885,2]
[330859617,1719871850028,-2861.08,0.00015885,2]
[330859618,1719871850038,-500.0,0.00015885,2]
[330859619,1719871850047,-500.0,0.00015885,2]
[330859620,1719871850056,-500.0,0.00015885,2]
[330859621,1719871850066,-451.2427811,0.00015886,2]
[330859622,1719871850077,-500.0,0.00015886,2]
[330859623,1719871850087,-500.0,0.00015886,2]
[330859624,1719871850096,-500.0,0.00015886,2]
[330859625,1719871850106,-500.0,0.00015886,2]
[330859626,1719871850116,-500.90278935,0.00015886,2]
[330859627,1719871850125,-502.09587771,0.00015886,2]
[330859628,1719871850135,-500.0,0.00015886,2]
[330859629,1719871850145,-500.0,0.00015886,2]
[330859630,1719871850155,-500.0,0.00015886,2]
[330859631,1719871850165,-238.21381551,0.00015886,2]
[330859632,1719871850176,-500.0,0.00015886,2]
[330859633,1719871850186,-500.0,0.00015886,2]
[330859634,1719871850197,-500.0,0.00015886,2]
[330859635,1719871850212,-500.0,0.00015886,2]
[330859636,1719871850223,-500.0,0.00015886,2]
[330859637,1719871850232,-500.0,0.00015886,2]
[330859638,1719871850243,-500.0,0.00015886,2]
[330859639,1719871850252,-501.05558032,0.00015886,2]
[330859640,1719871850262,-510.73706533,0.00015886,2]
[330859641,1719871850272,-502.18620457,0.00015886,2]
[330859642,1719871850284,-502.78324507,0.00015886,2]
[330859643,1719871850295,-501.56937204,0.00015886,2]
[330859644,1719871850305,-500.0,0.00015886,2]
[330859645,1719871850314,-500.0,0.00015886,2]
[330859646,1719871850325,-500.0,0.00015886,2]
[330859647,1719871850334,-500.0,0.00015886,2]
[330859648,1719871850344,-500.0,0.00015886,2]
[330859649,1719871850354,-500.0,0.00015886,2]
[330859650,1719871850363,-500.0,0.00015886,2]
[330859651,1719871850373,-400.90898615,0.00015886,2]
[330859652,1719871850382,-500.0,0.00015886,2]
[330859653,1719871850392,-500.0,0.00015886,2]
[330859654,1719871850402,-565.39,0.00015886,2]
[330859655,1719871850412,-500.0,0.00015886,2]
[330859656,1719871850422,-500.0,0.00015886,2]
[330859657,1719871850431,-500.0,0.00015886,2]
[330859658,1719871850442,-500.0,0.00015886,2]
[330859659,1719871850452,-500.0,0.00015886,2]
[330859660,1719871850461,-500.0,0.00015886,2]
[330859661,1719871850471,-569.77,0.00015886,2]
[330859662,1719871850480,-500.0,0.00015886,2]
[330859663,1719871850489,-500.0,0.00015886,2]
[330859664,1719871850499,-500.0,0.00015886,2]
[330859665,1719871850508,-500.0,0.00015886,2]
[330859666,1719871850518,-500.0,0.00015886,2]
[330859667,1719871850528,-500.0,0.00015886,2]
[330859668,1719871850538,-503.52693915,0.00015886,2]
[330859669,1719871850548,-500.0,0.00015886,2]
[330859670,1719871850557,-500.0,0.00015886,2]
[330859671,1719871850567,-500.0,0.00015886,2]
[330859672,1719871850576,-500.0,0.00015886,2]
[330859673,1719871850586,-514.34013067,0.00015886,2]
[330859674,1719871850596,-500.0,0.00015886,2]
[330859675,1719871850606,-1001.82213791,0.00015886,2]
[330859676,1719871850615,-500.0,0.00015886,2]
[330859677,1719871850625,-504.57396353,0.00015886,2]
[330859678,1719871850636,-500.0,0.00015886,2]
[330859679,1719871850645,-308.24572978,0.00015886,2]
[330859680,1719871850655,-500.0,0.00015886,2]
[330859681,1719871850664,-500.0,0.00015886,2]
[330859682,1719871850673,-500.0,0.00015886,2]
[330859683,1719871850682,-500.0,0.00015886,2]
[330859684,1719871850691,-500.0,0.00015886,2]
[330859685,1719871850700,-500.0,0.00015886,2]
[330859686,1719871850709,-500.0,0.00015886,2]
[330859687,1719871850719,-500.0,0.00015886,2]
[330859688,1719871850729,-500.0,0.00015886,2]
[330859689,1719871850738,-504.01820865,0.00015886,2]
[330859690,1719871850748,-500.0,0.00015886,2]
[330859691,1719871850758,-500.0,0.00015886,2]
[330859692,1719871850768,-500.0,0.00015886,2]
[330859693,1719871850777,-501.85797107,0.00015886,2]
[330859694,1719871850787,-555.68,0.00015886,2]
[330859695,1719871850796,-501.97492881,0.00015886,2]
[330859696,1719871850805,-500.70244719,0.00015886,2]
[330859697,1719871850814,-503.83717532,0.00015886,2]
[330859698,1719871850824,-500.0,0.00015886,2]
[330859699,1719871850833,-500.0,0.00015886,2]
[330859700,1719871850843,-500.0,0.00015886,2]
[330859701,1719871850852,-500.0,0.00015886,2]
[330859702,1719871850862,-212.60308764,0.00015886,2]
[330859703,1719871850871,-500.0,0.00015886,2]
[330859704,1719871850881,-510.69835887,0.00015886,2]
[330859705,1719871850892,-500.93496073,0.00015886,2]
[330859706,1719871850901,-500.0,0.00015886,2]
[330859707,1719871850911,-500.0,0.00015886,2]
[330859708,1719871850921,-504.51527386,0.00015886,2]
[330859709,1719871850930,-500.0,0.00015886,2]
[330859710,1719871850940,-501.17933214,0.00015886,2]
[330859711,1719871850949,-500.0,0.00015886,2]
[330859712,1719871850960,-500.0,0.00015886,2]
[330859713,1719871850970,-500.0,0.00015886,2]
[330859714,1719871850979,-507.26833086,0.00015886,2]
[330859715,1719871850989,-500.0,0.00015886,2]
[330859716,1719871850998,-500.0,0.00015886,2]
[330859717,1719871851007,-500.0,0.00015886,2]
[330859718,1719871851017,-500.0,0.00015886,2]
[330859719,1719871851026,-500.0,0.00015886,2]
[330859720,1719871851035,-500.0,0.00015886,2]
[330859721,1719871851044,-500.0,0.00015886,2]
[330859722,1719871851054,-503.03474706,0.00015886,2]
[330859723,1719871851063,-500.0,0.00015886,2]
[330859724,1719871851073,-501.4559309,0.00015886,2]
[330859725,1719871851082,-500.0,0.00015886,2]
[330859726,1719871851092,-500.0,0.00015886,2]
[330859727,1719871851102,-501.14669513,0.00015886,2]
[330859728,1719871851111,-500.0,0.00015886,2]
[330859729,1719871851121,-502.23423063,0.00015886,2]
[330859730,1719871851130,-500.0,0.00015886,2]
[330859731,1719871851140,-500.0,0.00015886,2]
[330859732,1719871851149,-501.69221528,0.00015886,2]
[330859733,1719871851158,-154.82195475,0.00015886,2]
[330859734,1719871851168,-505.82469929,0.00015886,2]
[330859735,1719871851177,-500.0,0.00015886,2]
[330859736,1719871851187,-502.13440233,0.00015886,2]
[330859737,1719871851198,-594.77270729,0.00015886,2]
[330859738,1719871851212,-500.55403883,0.00015886,2]
[330859739,1719871851222,-500.0,0.00015886,2]
[330859740,1719871851231,-501.12842127,0.00015886,2]
[330859741,1719871851240,-519.41,0.00015886,2]
[330859742,1719871851251,-502.16883062,0.00015886,2]
[330859743,1719871851260,-548.08053145,0.00015886,2]
[330859744,1719871851270,-500.91944801,0.00015886,2]
[330859745,1719871851282,-501.06406954,0.00015886,2]
[330859746,1719871851292,-501.39929221,0.00015886,2]
[330859747,1719871851301,-501.88013207,0.00015886,2]
[330859748,1719871851310,-500.0,0.00015886,2]
[330859749,1719871851320,-500.0,0.00015886,2]
[330859750,1719871851329,-558.43315913,0.00015886,2]
[330859751,1719871851338,-151.0,0.00015886,2]
[330859752,1719871851348,-151.0,0.00015886,2]
[330859753,1719871851357,-505.30757377,0.00015886,2]
[330859754,1719871851367,-501.05548246,0.00015886,2]
[330859755,1719871851484,-151.0,0.00015886,2]
[330859756,1719871851494,-500.0,0.00015886,2]
[330859757,1719871851504,-151.0,0.00015886,2]
[330859758,1719871851513,-500.0,0.00015886,2]
[330859759,1719871851522,-500.0,0.00015886,2]
[330859760,1719871851531,-500.0,0.00015886,2]
[330859761,1719871851541,-500.0,0.00015886,2]
[330859762,1719871851551,-501.567329,0.00015886,2]
[330859763,1719871851561,-500.58206046,0.00015886,2]
[330859764,1719871851571,-500.0,0.00015886,2]
[330859765,1719871851580,-500.0,0.00015886,2]
[330859766,1719871851589,-500.0,0.00015886,2]
[330859767,1719871851599,-500.0,0.00015886,2]
[330859768,1719871851608,-500.0,0.00015886,2]
[330859769,1719871851618,-500.0,0.00015886,2]
[330859770,1719871851627,-642.96781666,0.00015886,2]
[330859771,1719871851637,-500.0,0.00015886,2]
[330859772,1719871851646,-500.0,0.00015886,2]
[330859773,1719871851656,-504.06629619,0.00015886,2]
[330859774,1719871851668,-500.4399713,0.00015886,2]
[330859775,1719871851678,-1370.07,0.00015886,2]
[330859776,1719871851688,-270.22035159,0.00015886,2]
[330859777,1719871851697,-500.0,0.00015886,2]
[330859778,1719871851707,-500.0,0.00015886,2]
[330859779,1719871851717,-500.0,0.00015886,2]
[330859780,1719871851726,-510.42155579,0.00015886,2]
[330859781,1719871851735,-500.32134433,0.00015886,2]
[330859782,1719871851745,-500.0,0.00015886,2]
[330859783,1719871851755,-500.28795774,0.00015886,2]
[330859784,1719871851765,-500.0,0.00015886,2]
[330859785,1719871851775,-500.0,0.00015886,2]
[330859786,1719871851784,-500.0,0.00015886,2]
[330859787,1719871851793,-500.0,0.00015886,2]
[330859788,1719871851802,-538.42,0.00015886,2]
[330859789,1719871851812,-500.0,0.00015886,2]
[330859790,1719871851822,-500.0,0.00015886,2]
[330859791,1719871851833,-500.0,0.00015886,2]
[330859792,1719871851842,-255.16890538,0.00015886,2]
[330859793,1719871851853,-513.55413111,0.00015886,2]
[330859794,1719871851864,-500.0,0.00015886,2]
[330859795,1719871851874,-500.0,0.00015886,2]
[330859796,1719871851884,-501.8011841,0.00015886,2]
[330859797,1719871851894,-500.0,0.00015886,2]
[330859798,1719871851903,-500.0,0.00015886,2]
[330859799,1719871851913,-500.0,0.00015886,2]
[330859800,1719871851922,-500.0,0.00015886,2]
[330859801,1719871851932,-500.4929191,0.00015886,2]
[330859802,1719871851941,-151.0,0.00015886,2]
[330859803,1719871851951,-500.0,0.00015886,2]
[330859804,1719871851960,-614.06,0.00015886,2]
[330859805,1719871851970,-500.0,0.00015886,2]
[330859806,1719871851987,-9143.71,0.00015886,2]
[330859807,1719871852000,-2861.08,0.00015886,2]
[330859808,1719871852011,-500.0,0.00015886,2]
[330859809,1719871852021,-500.0,0.00015887,2]
[330859810,1719871852031,-503.1620186,0.00015887,2]
[330859811,1719871852041,-501.6492349,0.00015887,2]
[330859812,1719871852052,-504.57188163,0.00015887,2]
[330859813,1719871852062,-500.0,0.00015887,2]
[330859814,1719871852072,-500.0,0.00015887,2]
[330859815,1719871852082,-500.0,0.00015887,2]
[330859816,1719871852092,-510.70573883,0.00015887,2]
[330859817,1719871852102,-549.1068026,0.00015887,2]
[330859818,1719871852112,-500.0,0.00015887,2]
[330859819,1719871852122,-500.0,0.00015887,2]
[330859820,1719871852132,-209.58497005,0.00015887,2]
[330859821,1719871852144,-500.0,0.00015887,2]
[330859822,1719871852154,-151.0,0.00015887,2]
[330859823,1719871852164,-151.0,0.00015887,2]
[330859824,1719871852175,-500.0,0.00015887,2]
[330859825,1719871852185,-500.0,0.00015887,2]
[330859826,1719871852196,-500.0,0.00015887,2]
[330859827,1719871852210,-500.0,0.00015887,2]
[330859828,1719871852220,-1632.47,0.00015887,2]
[330859829,1719871852230,-151.0,0.00015888,2]
[330859830,1719871852240,-255.04189,0.00015888,2]
[330859831,1719871852251,-954.16,0.00015888,2]
[330859832,1719871852261,-4309.82,0.00015888,2]
[330859833,1719871852271,-500.0,0.00015888,2]
[330859834,1719871852283,-385.19431169,0.00015888,2]
[330859835,1719871852294,-698.7,0.00015888,2]
[330859836,1719871852304,-500.0,0.00015888,2]
[330859837,1719871852314,-644.52,0.00015888,2]
[330859838,1719871852324,-2861.08,0.00015888,2]
[330859839,1719871852334,-500.0,0.00015888,2]
[330859840,1719871852343,-547.51286034,0.00015888,2]
[330859841,1719871852354,-6043.8,0.00015889,2]
[330859842,1719871852363,-2883.75,0.00015889,2]
[330859843,1719871852374,-490.82318913,0.00015995,2]
[330859844,1719871852384,-151.0,0.00016253,2]
[330859845,1719871852393,-2861.08,0.00016253,2]
[330859846,1719871852405,-2861.08,0.00016253,2]
[330859847,1719871852414,-2861.08,0.00016253,2]
[330859848,1719871852424,-2861.08,0.00016253,2]
[330859849,1719871852434,-89015.61492045,0.00016254,2]
[330859850,1719871852444,-57192.36374084,0.00016254,2]
[330859851,1719871852454,-187.60946835,0.00016254,2]
[330859852,1719871852464,-151.0,0.00016254,2]
[330859853,1719871852473,-151.0,0.00016254,2]
[330859854,1719871852483,-151.0,0.00016254,2]
[330859855,1719871852493,-151.0,0.00016254,2]
[330859856,1719871852503,-2861.08,0.00016254,2]
[330859857,1719871852512,-2861.08,0.00016254,2]
[330859858,1719871852522,-2861.08,0.00016254,2]
[330859859,1719871852531,-317.32798819,0.00016255,2]
[330859860,1719871852541,-26080.98438024,0.00016255,2]
[330859861,1719871852551,-42219.78058169,0.00016255,2]
[330859862,1719871852563,-30000.0,0.00016255,2]